[Event "Late-Titled-Tuesday-Blitz-March-19-2024"]
[Site "Chess.com"]
[Date "2024.03.19"]
[Round "2"]
[White "stregachess"]
[Black "thesupera12"]
[Result "1-0"]
[WhiteElo "2013"]
[BlackElo "2444"]
[TimeControl "180+1"]
[EndTime "14:16:33 PDT"]
[Termination "stregachess won by resignation"]

1. d4 {[%clk 0:03:00.1]} 1... b5 {[%clk 0:02:58.4]} 2. Nf3 {[%clk 0:02:56.1]}
2... Bb7 {[%clk 0:02:58.2]} 3. Bf4 {[%clk 0:02:54.8]} 3... e6 {[%clk 0:02:56.8]}
4. e3 {[%clk 0:02:54.8]} 4... a6 {[%clk 0:02:53]} 5. Be2 {[%clk 0:02:53.3]} 5...
Nf6 {[%clk 0:02:50]} 6. h3 {[%clk 0:02:52.2]} 6... c5 {[%clk 0:02:50]} 7. O-O
{[%clk 0:02:50.6]} 7... cxd4 {[%clk 0:02:46.1]} 8. exd4 {[%clk 0:02:50.1]} 8...
d5 {[%clk 0:02:45.2]} 9. c3 {[%clk 0:02:49.7]} 9... Nbd7 {[%clk 0:02:44.5]} 10.
a4 {[%clk 0:02:49.7]} 10... b4 {[%clk 0:02:43.6]} 11. Qb3 {[%clk 0:02:42.9]}
11... a5 {[%clk 0:02:41.7]} 12. cxb4 {[%clk 0:02:35.5]} 12... Bxb4 {[%clk
0:02:40.3]} 13. Nc3 {[%clk 0:02:33.6]} 13... O-O {[%clk 0:02:38.4]} 14. Nb5
{[%clk 0:02:29.4]} 14... Ne4 {[%clk 0:02:32.5]} 15. Rac1 {[%clk 0:02:28.3]}
15... Rc8 {[%clk 0:02:27.4]} 16. Rxc8 {[%clk 0:02:19.1]} 16... Bxc8 {[%clk
0:02:25.6]} 17. Rc1 {[%clk 0:02:18.7]} 17... Ba6 {[%clk 0:02:22.2]} 18. Bc7
{[%clk 0:02:12.9]} 18... Qa8 {[%clk 0:02:17.3]} 19. Bf4 {[%clk 0:02:12.4]} 19...
Rc8 {[%clk 0:02:14.1]} 20. Rc2 {[%clk 0:02:03.8]} 20... h6 {[%clk 0:02:07.1]}
21. Nc7 {[%clk 0:02:03]} 21... Rxc7 {[%clk 0:01:31.1]} 22. Bxc7 {[%clk
0:02:00.3]} 22... Bxe2 {[%clk 0:01:27.3]} 23. Rxe2 {[%clk 0:01:59.3]} 23... Qa6
{[%clk 0:01:28]} 24. Rc2 {[%clk 0:01:56.7]} 24... Ndf6 {[%clk 0:01:15.4]} 25.
Bf4 {[%clk 0:01:54.8]} 25... Qb6 {[%clk 0:01:10.8]} 26. Be3 {[%clk 0:01:53.1]}
26... Kh7 {[%clk 0:01:09.3]} 27. Ne5 {[%clk 0:01:42.6]} 27... Qb7 {[%clk
0:01:05.2]} 28. Qd3 {[%clk 0:01:41.6]} 28... g6 {[%clk 0:01:03.3]} 29. Rc1
{[%clk 0:01:19.6]} 29... Nd6 {[%clk 0:01:01.2]} 30. Qc2 {[%clk 0:01:16.7]} 30...
Kg7 {[%clk 0:00:51.8]} 31. Qc7 {[%clk 0:01:13.2]} 31... Qa6 {[%clk 0:00:52.4]}
32. Rc6 {[%clk 0:01:08]} 32... Qe2 {[%clk 0:00:49.8]} 33. Rxd6 {[%clk
0:01:06.2]} 33... Bxd6 {[%clk 0:00:49.6]} 34. Qxd6 {[%clk 0:01:06.4]} 34... Qxb2
{[%clk 0:00:48.7]} 35. Qc7 {[%clk 0:00:59]} 35... Qb1+ {[%clk 0:00:49.1]} 36.
Kh2 {[%clk 0:00:58.7]} 1-0

[Event "Late-Titled-Tuesday-Blitz-March-19-2024"]
[Site "Chess.com"]
[Date "2024.03.19"]
[Round "2"]
[White "secretworker2027"]
[Black "TigrVShlyape"]
[Result "1/2-1/2"]
[WhiteElo "2646"]
[BlackElo "2929"]
[TimeControl "180+1"]
[EndTime "14:16:37 PDT"]
[Termination "Game drawn by repetition"]

1. e4 {[%clk 0:02:59.6]} 1... e5 {[%clk 0:02:50.3]} 2. Nf3 {[%clk 0:02:59.2]}
2... Nc6 {[%clk 0:02:46.6]} 3. Bb5 {[%clk 0:02:58.1]} 3... Nf6 {[%clk
0:02:44.8]} 4. O-O {[%clk 0:02:57.2]} 4... Nxe4 {[%clk 0:02:44.6]} 5. d4 {[%clk
0:02:57.6]} 5... Nd6 {[%clk 0:02:44.3]} 6. dxe5 {[%clk 0:02:57.6]} 6... Nxb5
{[%clk 0:02:44]} 7. a4 {[%clk 0:02:57.7]} 7... Nbd4 {[%clk 0:02:41.6]} 8. Nxd4
{[%clk 0:02:57.5]} 8... Nxd4 {[%clk 0:02:20.8]} 9. Qxd4 {[%clk 0:02:56.1]} 9...
Be7 {[%clk 0:01:47.1]} 10. Nc3 {[%clk 0:02:55.4]} 10... O-O {[%clk 0:01:45]} 11.
Nd5 {[%clk 0:02:54.5]} 11... b6 {[%clk 0:01:43.1]} 12. Nxe7+ {[%clk 0:02:44.3]}
12... Qxe7 {[%clk 0:01:42.9]} 13. b3 {[%clk 0:02:44.5]} 13... Bb7 {[%clk
0:01:40.8]} 14. Bb2 {[%clk 0:02:32.9]} 14... Qe6 {[%clk 0:01:30.6]} 15. Rad1
{[%clk 0:02:28.1]} 15... Rad8 {[%clk 0:01:27.3]} 16. Qc3 {[%clk 0:02:24.4]}
16... Qc6 {[%clk 0:01:25.5]} 17. Qxc6 {[%clk 0:02:24.3]} 17... Bxc6 {[%clk
0:01:24.5]} 18. Rfe1 {[%clk 0:02:23.4]} 18... f6 {[%clk 0:01:20.7]} 19. exf6
{[%clk 0:02:22.5]} 19... gxf6 {[%clk 0:01:20.6]} 20. f3 {[%clk 0:02:21.7]} 20...
Kf7 {[%clk 0:01:20.3]} 21. Kf2 {[%clk 0:02:21.7]} 21... Rfe8 {[%clk 0:01:19.8]}
22. Rxe8 {[%clk 0:02:21.2]} 22... Rxe8 {[%clk 0:01:20.1]} 23. Re1 {[%clk
0:02:21.9]} 23... Rg8 {[%clk 0:01:18.5]} 24. Rd1 {[%clk 0:02:18.6]} 24... a5
{[%clk 0:01:14.2]} 25. Rd4 {[%clk 0:02:18.5]} 25... h5 {[%clk 0:01:13.2]} 26.
Rf4 {[%clk 0:02:16.9]} 26... Rg6 {[%clk 0:01:13]} 27. h4 {[%clk 0:02:15.9]}
27... Rh6 {[%clk 0:01:09.6]} 28. g3 {[%clk 0:02:09.2]} 28... Ke6 {[%clk
0:01:09]} 29. Bc1 {[%clk 0:02:00.9]} 29... Rh7 {[%clk 0:01:07]} 30. Rd4 {[%clk
0:01:57.2]} 30... d5 {[%clk 0:01:06]} 31. Rd1 {[%clk 0:01:55.8]} 31... Bb7
{[%clk 0:01:05.3]} 32. Re1+ {[%clk 0:01:55]} 32... Kd7 {[%clk 0:01:05.6]} 33.
Bb2 {[%clk 0:01:52.5]} 33... Rh6 {[%clk 0:01:05.3]} 34. Bc1 {[%clk 0:01:52.6]}
34... Rg6 {[%clk 0:01:05.4]} 35. Rg1 {[%clk 0:01:49.7]} 35... f5 {[%clk
0:01:04.1]} 36. Ke3 {[%clk 0:01:43.6]} 36... d4+ {[%clk 0:00:58.6]} 37. Kxd4
{[%clk 0:01:38.4]} 37... Bxf3 {[%clk 0:00:57.7]} 38. Ke5 {[%clk 0:01:38]} 38...
Rc6 {[%clk 0:00:56.3]} 39. c4 {[%clk 0:01:34.8]} 39... Bg4 {[%clk 0:00:55.4]}
40. Bf4 {[%clk 0:01:24.9]} 40... Re6+ {[%clk 0:00:55]} 41. Kd4 {[%clk
0:01:24.8]} 41... Re2 {[%clk 0:00:53.7]} 42. Kc3 {[%clk 0:01:24]} 42... c5
{[%clk 0:00:48.7]} 43. Rd1+ {[%clk 0:01:23]} 43... Kc6 {[%clk 0:00:45.9]} 44.
Rd6+ {[%clk 0:01:22.9]} 44... Kb7 {[%clk 0:00:45.8]} 45. Rd7+ {[%clk 0:01:22.6]}
45... Ka8 {[%clk 0:00:44.3]} 46. Rd8+ {[%clk 0:01:22.6]} 46... Kb7 {[%clk
0:00:44.5]} 47. Rd7+ {[%clk 0:01:23]} 47... Ka8 {[%clk 0:00:44.7]} 48. Rd8+
{[%clk 0:01:23.5]} 48... Kb7 {[%clk 0:00:45.1]} 49. Rd7+ {[%clk 0:01:24.1]}
1/2-1/2

[Event "Late-Titled-Tuesday-Blitz-March-19-2024"]
[Site "Chess.com"]
[Date "2024.03.19"]
[Round "2"]
[White "Kopytkin"]
[Black "vugarrasulov"]
[Result "0-1"]
[WhiteElo "2432"]
[BlackElo "2951"]
[TimeControl "180+1"]
[EndTime "14:16:40 PDT"]
[Termination "vugarrasulov won on time"]

1. e4 {[%clk 0:02:59]} 1... g6 {[%clk 0:02:59.8]} 2. d4 {[%clk 0:02:58.2]} 2...
Bg7 {[%clk 0:03:00.4]} 3. Nc3 {[%clk 0:02:58.7]} 3... c6 {[%clk 0:02:58.9]} 4.
h3 {[%clk 0:02:57.1]} 4... d6 {[%clk 0:02:58.1]} 5. g3 {[%clk 0:02:44.7]} 5...
Nd7 {[%clk 0:02:57.7]} 6. Bg2 {[%clk 0:02:45]} 6... e5 {[%clk 0:02:58.1]} 7.
Nge2 {[%clk 0:02:45.3]} 7... Ngf6 {[%clk 0:02:55]} 8. O-O {[%clk 0:02:43.8]}
8... O-O {[%clk 0:02:55.2]} 9. Bg5 {[%clk 0:02:44]} 9... b5 {[%clk 0:02:53.2]}
10. a3 {[%clk 0:02:42.3]} 10... Bb7 {[%clk 0:02:51.8]} 11. Qd2 {[%clk
0:02:41.6]} 11... Re8 {[%clk 0:02:48.1]} 12. Rad1 {[%clk 0:02:25.6]} 12... a5
{[%clk 0:02:44.2]} 13. b3 {[%clk 0:02:03.5]} 13... Qc7 {[%clk 0:02:40.2]} 14.
dxe5 {[%clk 0:01:54.5]} 14... dxe5 {[%clk 0:02:41.1]} 15. a4 {[%clk 0:01:25.2]}
15... b4 {[%clk 0:02:39.7]} 16. Nb1 {[%clk 0:01:25.2]} 16... c5 {[%clk
0:02:37.3]} 17. Qe3 {[%clk 0:01:21.2]} 17... c4 {[%clk 0:02:32.8]} 18. Nd2
{[%clk 0:01:18.4]} 18... Nb6 {[%clk 0:02:32.3]} 19. Kh2 {[%clk 0:00:43]} 19...
c3 {[%clk 0:02:29.5]} 20. Bxf6 {[%clk 0:00:36.1]} 20... Bxf6 {[%clk 0:02:29.5]}
21. Nf3 {[%clk 0:00:36.4]} 21... Ba6 {[%clk 0:02:28.3]} 22. Rfe1 {[%clk
0:00:35.2]} 22... Rad8 {[%clk 0:02:27.7]} 23. Nc1 {[%clk 0:00:35]} 23... Nd7
{[%clk 0:01:58]} 24. Bf1 {[%clk 0:00:34.5]} 24... Bb7 {[%clk 0:01:52.2]} 25. Bb5
{[%clk 0:00:33.8]} 25... Re7 {[%clk 0:01:50.2]} 26. Nd3 {[%clk 0:00:32]} 26...
Nf8 {[%clk 0:01:49.4]} 27. Qh6 {[%clk 0:00:20.7]} 27... Bg7 {[%clk 0:01:47.6]}
28. Qh4 {[%clk 0:00:20.8]} 28... f6 {[%clk 0:01:39.8]} 29. Bc4+ {[%clk
0:00:15.1]} 29... Kh8 {[%clk 0:01:40.4]} 30. g4 {[%clk 0:00:10.5]} 30... g5
{[%clk 0:01:38.2]} 31. Qh5 {[%clk 0:00:04.6]} 31... Bc6 {[%clk 0:01:37.9]} 32.
Nxg5 {[%clk 0:00:03]} 32... fxg5 {[%clk 0:01:36.7]} 33. Qxg5 {[%clk 0:00:03.4]}
33... Ng6 {[%clk 0:01:32.9]} 0-1

[Event "Late-Titled-Tuesday-Blitz-March-19-2024"]
[Site "Chess.com"]
[Date "2024.03.19"]
[Round "2"]
[White "chucksterf10"]
[Black "GoltsevDmitry2000"]
[Result "1-0"]
[WhiteElo "2568"]
[BlackElo "2749"]
[TimeControl "180+1"]
[EndTime "14:16:43 PDT"]
[Termination "chucksterf10 won by resignation"]

1. c4 {[%clk 0:03:00.9]} 1... e5 {[%clk 0:03:00]} 2. Nc3 {[%clk 0:03:00]} 2...
Nf6 {[%clk 0:03:00.1]} 3. d3 {[%clk 0:02:55.8]} 3... d5 {[%clk 0:02:59.7]} 4.
cxd5 {[%clk 0:02:55.8]} 4... Nxd5 {[%clk 0:03:00.6]} 5. e4 {[%clk 0:02:56]} 5...
Nf4 {[%clk 0:02:55.9]} 6. Nf3 {[%clk 0:02:52.9]} 6... Nc6 {[%clk 0:02:55.7]} 7.
Nxe5 {[%clk 0:02:51.3]} 7... Nxg2+ {[%clk 0:02:51.5]} 8. Bxg2 {[%clk 0:02:52.2]}
8... Nxe5 {[%clk 0:02:52]} 9. d4 {[%clk 0:02:52.4]} 9... Ng6 {[%clk 0:02:51.8]}
10. Be3 {[%clk 0:02:23]} 10... Nh4 {[%clk 0:02:50.2]} 11. Bf3 {[%clk 0:02:23.4]}
11... Nxf3+ {[%clk 0:02:48.4]} 12. Qxf3 {[%clk 0:02:24.3]} 12... c6 {[%clk
0:02:46.4]} 13. O-O-O {[%clk 0:02:22.2]} 13... Bb4 {[%clk 0:02:34.6]} 14. Rhg1
{[%clk 0:02:20.6]} 14... g6 {[%clk 0:02:31.7]} 15. Bg5 {[%clk 0:02:10.8]} 15...
Qa5 {[%clk 0:02:30.5]} 16. Bf6 {[%clk 0:02:11]} 16... Rf8 {[%clk 0:02:29.9]} 17.
Rg5 {[%clk 0:02:07.8]} 17... Qc7 {[%clk 0:02:26]} 18. Re5+ {[%clk 0:02:05.8]}
18... Be6 {[%clk 0:02:20.9]} 19. d5 {[%clk 0:02:05.9]} 19... Bd6 {[%clk
0:02:05.3]} 20. dxe6 {[%clk 0:01:48.4]} 20... Bxe5 {[%clk 0:01:57.6]} 21. e7
{[%clk 0:01:48.5]} 21... Bxf6 {[%clk 0:01:51.4]} 22. exf8=Q+ {[%clk 0:01:45.5]}
22... Kxf8 {[%clk 0:01:52.3]} 23. Qxf6 {[%clk 0:01:46]} 23... Kg8 {[%clk
0:01:53.2]} 24. e5 {[%clk 0:01:40.4]} 24... Re8 {[%clk 0:01:52.4]} 25. e6 {[%clk
0:01:40.2]} 25... fxe6 {[%clk 0:01:50.4]} 26. Ne4 {[%clk 0:01:39.8]} 26... Qxh2
{[%clk 0:01:45.3]} 27. Rd7 {[%clk 0:01:30.1]} 27... Qh1+ {[%clk 0:01:44.9]} 28.
Kd2 {[%clk 0:01:30.1]} 28... Qh6+ {[%clk 0:01:44.9]} 29. Ng5 {[%clk 0:01:25.6]}
29... Rf8 {[%clk 0:01:34.9]} 30. Qxe6+ {[%clk 0:01:21]} 30... Kh8 {[%clk
0:01:34.6]} 31. Rxh7+ {[%clk 0:01:18]} 31... Qxh7 {[%clk 0:01:33.9]} 32. Nxh7
{[%clk 0:01:18.9]} 32... Kxh7 {[%clk 0:01:32.3]} 33. Qe7+ {[%clk 0:01:15.4]}
33... Kg8 {[%clk 0:01:32]} 34. Qxb7 {[%clk 0:01:15.7]} 34... Rxf2+ {[%clk
0:01:30.4]} 35. Ke3 {[%clk 0:01:16]} 35... Rf7 {[%clk 0:01:30.5]} 36. Qxc6
{[%clk 0:01:15.6]} 36... Kg7 {[%clk 0:01:29.8]} 37. b4 {[%clk 0:01:14.9]} 37...
g5 {[%clk 0:01:28.4]} 38. b5 {[%clk 0:01:14.8]} 38... g4 {[%clk 0:01:28]} 39.
Qe4 {[%clk 0:01:10.1]} 39... Rf3+ {[%clk 0:01:19.5]} 40. Ke2 {[%clk 0:01:10]}
40... Rf7 {[%clk 0:01:20.4]} 41. Qxg4+ {[%clk 0:01:09.9]} 41... Kf8 {[%clk
0:01:20.3]} 42. a4 {[%clk 0:01:08.4]} 42... a5 {[%clk 0:01:14.1]} 43. b6 {[%clk
0:01:07]} 43... Re7+ {[%clk 0:01:13.1]} 44. Kd3 {[%clk 0:01:06.3]} 44... Rf7
{[%clk 0:01:14]} 45. b7 {[%clk 0:01:05.3]} 1-0

[Event "Late-Titled-Tuesday-Blitz-March-19-2024"]
[Site "Chess.com"]
[Date "2024.03.19"]
[Round "2"]
[White "angelgab3"]
[Black "xxysoul6"]
[Result "0-1"]
[WhiteElo "2643"]
[BlackElo "2951"]
[TimeControl "180+1"]
[EndTime "14:16:46 PDT"]
[Termination "xxysoul6 won by resignation"]

1. e4 {[%clk 0:02:49.6]} 1... c5 {[%clk 0:02:57.3]} 2. Nf3 {[%clk 0:02:49.4]}
2... Nc6 {[%clk 0:02:57.8]} 3. Bb5 {[%clk 0:02:49.4]} 3... e6 {[%clk 0:02:57.7]}
4. O-O {[%clk 0:02:49.4]} 4... Nge7 {[%clk 0:02:57.9]} 5. d4 {[%clk 0:02:49.8]}
5... cxd4 {[%clk 0:02:55.9]} 6. Nxd4 {[%clk 0:02:50.7]} 6... Ng6 {[%clk
0:02:55]} 7. Be2 {[%clk 0:02:43]} 7... Be7 {[%clk 0:02:49.7]} 8. c4 {[%clk
0:02:42.6]} 8... b6 {[%clk 0:02:46.6]} 9. Be3 {[%clk 0:02:41.8]} 9... Bb7 {[%clk
0:02:46.5]} 10. Nc3 {[%clk 0:02:42.2]} 10... O-O {[%clk 0:02:47.2]} 11. Qd2
{[%clk 0:02:42.4]} 11... Rc8 {[%clk 0:02:47.4]} 12. Rad1 {[%clk 0:02:40]} 12...
d6 {[%clk 0:02:38.2]} 13. b3 {[%clk 0:02:32.5]} 13... Qd7 {[%clk 0:02:36.6]} 14.
Qb2 {[%clk 0:02:29.2]} 14... Rfd8 {[%clk 0:02:35.4]} 15. Rd2 {[%clk 0:02:29.2]}
15... Nxd4 {[%clk 0:02:31.5]} 16. Bxd4 {[%clk 0:02:30.1]} 16... Bg5 {[%clk
0:02:29.7]} 17. Rdd1 {[%clk 0:02:20.4]} 17... e5 {[%clk 0:02:26.1]} 18. Be3
{[%clk 0:02:17.3]} 18... Bxe3 {[%clk 0:02:26.3]} 19. fxe3 {[%clk 0:02:18.2]}
19... Qe7 {[%clk 0:02:27.2]} 20. Bf3 {[%clk 0:01:56]} 20... Bc6 {[%clk 0:02:22]}
21. Qe2 {[%clk 0:01:52.6]} 21... Rf8 {[%clk 0:02:20.8]} 22. Rd2 {[%clk
0:01:36.9]} 22... Rcd8 {[%clk 0:02:20.8]} 23. Rfd1 {[%clk 0:01:31.9]} 23... Qg5
{[%clk 0:02:20.4]} 24. Rxd6 {[%clk 0:01:27.4]} 24... Bb7 {[%clk 0:02:17.8]} 25.
Nb5 {[%clk 0:01:23.9]} 25... Nh4 {[%clk 0:02:14.2]} 26. Nxa7 {[%clk 0:01:21.3]}
26... Rxd6 {[%clk 0:02:08.1]} 27. Rxd6 {[%clk 0:01:20.5]} 27... f5 {[%clk
0:02:08.7]} 28. Rd7 {[%clk 0:00:57.5]} 28... fxe4 {[%clk 0:01:53.2]} 29. Bg4
{[%clk 0:00:56.2]} 29... Nf3+ {[%clk 0:01:43.5]} 30. Kh1 {[%clk 0:00:38.7]}
30... Qxg4 {[%clk 0:01:43.8]} 31. Rxb7 {[%clk 0:00:33.7]} 31... Rd8 {[%clk
0:01:44]} 32. Nc6 {[%clk 0:00:17]} 32... Qh5 {[%clk 0:01:34.1]} 33. h3 {[%clk
0:00:13.2]} 33... Rd2 {[%clk 0:01:32.1]} 34. Nxe5 {[%clk 0:00:09.6]} 34... Qxe5
{[%clk 0:01:27.9]} 0-1

[Event "Late-Titled-Tuesday-Blitz-March-19-2024"]
[Site "Chess.com"]
[Date "2024.03.19"]
[Round "2"]
[White "ploxoi"]
[Black "Beca95"]
[Result "0-1"]
[WhiteElo "2434"]
[BlackElo "2954"]
[TimeControl "180+1"]
[EndTime "14:16:48 PDT"]
[Termination "Beca95 won by resignation"]

1. d4 {[%clk 0:03:00.9]} 1... d5 {[%clk 0:02:59.1]} 2. Nf3 {[%clk 0:03:00.8]}
2... Bf5 {[%clk 0:02:58.5]} 3. c4 {[%clk 0:02:59.4]} 3... e6 {[%clk 0:02:58.7]}
4. cxd5 {[%clk 0:02:58.5]} 4... exd5 {[%clk 0:02:58.5]} 5. Qb3 {[%clk
0:02:58.6]} 5... Nc6 {[%clk 0:02:57.9]} 6. Nc3 {[%clk 0:02:57.6]} 6... Nb4
{[%clk 0:02:56.5]} 7. e4 {[%clk 0:02:34.2]} 7... dxe4 {[%clk 0:02:56.1]} 8. Ne5
{[%clk 0:02:33.3]} 8... Qe7 {[%clk 0:02:52.8]} 9. Bb5+ {[%clk 0:02:24.4]} 9...
c6 {[%clk 0:02:51]} 10. Be2 {[%clk 0:02:19.6]} 10... Nf6 {[%clk 0:02:44]} 11.
O-O {[%clk 0:02:16]} 11... O-O-O {[%clk 0:02:29.5]} 12. Bg5 {[%clk 0:02:12.1]}
12... Rxd4 {[%clk 0:02:27.6]} 13. Nxf7 {[%clk 0:02:06.9]} 13... Be6 {[%clk
0:02:27.3]} 14. Qa4 {[%clk 0:01:57.5]} 14... Bxf7 {[%clk 0:02:05.6]} 15. Qxa7
{[%clk 0:01:56.1]} 15... Qc5 {[%clk 0:02:05.2]} 16. Qa8+ {[%clk 0:01:54.5]}
16... Kc7 {[%clk 0:02:05.3]} 17. Bf4+ {[%clk 0:01:41.8]} 17... Kd7 {[%clk
0:01:36.6]} 18. Qxb7+ {[%clk 0:01:40.2]} 18... Ke8 {[%clk 0:01:36.6]} 19. Be3
{[%clk 0:01:34]} 19... Rd7 {[%clk 0:00:55.3]} 20. Qc8+ {[%clk 0:01:30]} 20...
Rd8 {[%clk 0:00:55.2]} 21. Qxd8+ {[%clk 0:01:25.4]} 21... Kxd8 {[%clk
0:00:55.3]} 22. Bxc5 {[%clk 0:01:25.5]} 22... Bxc5 {[%clk 0:00:56.2]} 23. a3
{[%clk 0:01:21.9]} 23... Nbd5 {[%clk 0:00:56]} 24. Rad1 {[%clk 0:01:19.6]} 24...
Ke7 {[%clk 0:00:56]} 25. Nxd5+ {[%clk 0:01:13.2]} 25... cxd5 {[%clk 0:00:54.1]}
26. b4 {[%clk 0:01:13]} 26... Bd6 {[%clk 0:00:54.1]} 27. Rc1 {[%clk 0:01:09.5]}
27... Ra8 {[%clk 0:00:52.9]} 28. Rc3 {[%clk 0:01:01.2]} 28... d4 {[%clk
0:00:52.6]} 29. Rg3 {[%clk 0:00:58.3]} 29... Bxg3 {[%clk 0:00:51.5]} 30. hxg3
{[%clk 0:00:57.8]} 30... d3 {[%clk 0:00:51.6]} 31. Bd1 {[%clk 0:00:56.7]} 31...
Rxa3 {[%clk 0:00:51.9]} 32. f3 {[%clk 0:00:55.6]} 32... e3 {[%clk 0:00:51.3]}
33. b5 {[%clk 0:00:51.7]} 33... e2 {[%clk 0:00:49.7]} 34. Re1 {[%clk 0:00:51.7]}
34... Bc4 {[%clk 0:00:48.7]} 0-1

[Event "Late-Titled-Tuesday-Blitz-March-19-2024"]
[Site "Chess.com"]
[Date "2024.03.19"]
[Round "2"]
[White "GMBenjaminBok"]
[Black "LikeWater"]
[Result "1-0"]
[WhiteElo "2965"]
[BlackElo "2650"]
[TimeControl "180+1"]
[EndTime "14:16:53 PDT"]
[Termination "GMBenjaminBok won by resignation"]

1. d4 {[%clk 0:02:59.1]} 1... Nf6 {[%clk 0:02:59.2]} 2. c4 {[%clk 0:02:58.1]}
2... g6 {[%clk 0:02:59.1]} 3. g3 {[%clk 0:02:57.7]} 3... Bg7 {[%clk 0:02:59.3]}
4. Bg2 {[%clk 0:02:57.9]} 4... O-O {[%clk 0:02:59]} 5. Nc3 {[%clk 0:02:58.5]}
5... d6 {[%clk 0:02:58.9]} 6. Nf3 {[%clk 0:02:59.1]} 6... Nbd7 {[%clk
0:02:58.6]} 7. O-O {[%clk 0:02:59.2]} 7... e5 {[%clk 0:02:58.8]} 8. e4 {[%clk
0:02:59.9]} 8... c6 {[%clk 0:02:58.1]} 9. Be3 {[%clk 0:02:59.1]} 9... Ng4 {[%clk
0:02:55.4]} 10. Bg5 {[%clk 0:02:58.3]} 10... f6 {[%clk 0:02:55.7]} 11. Bd2
{[%clk 0:02:57.3]} 11... Nh6 {[%clk 0:02:45.8]} 12. h3 {[%clk 0:02:44.9]} 12...
Nf7 {[%clk 0:02:44.6]} 13. Be3 {[%clk 0:02:39.7]} 13... f5 {[%clk 0:02:36.7]}
14. exf5 {[%clk 0:02:36.7]} 14... gxf5 {[%clk 0:02:37.6]} 15. dxe5 {[%clk
0:02:28.5]} 15... dxe5 {[%clk 0:02:37.2]} 16. Qc2 {[%clk 0:02:27.5]} 16... e4
{[%clk 0:02:21.9]} 17. Nd4 {[%clk 0:02:15.5]} 17... Nfe5 {[%clk 0:02:21.9]} 18.
Ne6 {[%clk 0:02:12.7]} 18... Qe7 {[%clk 0:02:20.5]} 19. Nxf8 {[%clk 0:02:06.6]}
19... Nxf8 {[%clk 0:02:21.4]} 20. Ne2 {[%clk 0:01:55.4]} 20... Be6 {[%clk
0:02:16.4]} 21. Bd4 {[%clk 0:01:55.2]} 21... Nxc4 {[%clk 0:02:06.2]} 22. Bxg7
{[%clk 0:01:52.2]} 22... Kxg7 {[%clk 0:02:06.5]} 23. Nf4 {[%clk 0:01:51.2]}
23... Ng6 {[%clk 0:02:03.9]} 24. Qc3+ {[%clk 0:01:49.3]} 24... Kf7 {[%clk
0:02:01.4]} 25. Nxe6 {[%clk 0:01:22.9]} 25... Qxe6 {[%clk 0:02:02.2]} 26. f3
{[%clk 0:01:19.1]} 26... e3 {[%clk 0:02:00.4]} 27. f4 {[%clk 0:01:18.8]} 27...
Rg8 {[%clk 0:01:47.3]} 28. Rfe1 {[%clk 0:01:04.7]} 28... b5 {[%clk 0:01:26]} 29.
b3 {[%clk 0:00:41.3]} 29... Nxf4 {[%clk 0:01:23.7]} 30. gxf4 {[%clk 0:00:42.2]}
30... Rxg2+ {[%clk 0:01:22.9]} 31. Kxg2 {[%clk 0:00:43.1]} 31... Qe4+ {[%clk
0:01:22.9]} 32. Kg3 {[%clk 0:00:34.3]} 32... h5 {[%clk 0:01:13]} 33. h4 {[%clk
0:00:29.8]} 1-0

[Event "Late-Titled-Tuesday-Blitz-March-19-2024"]
[Site "Chess.com"]
[Date "2024.03.19"]
[Round "2"]
[White "EsmeraldasAnderson03"]
[Black "dropstoneDP"]
[Result "0-1"]
[WhiteElo "2548"]
[BlackElo "2981"]
[TimeControl "180+1"]
[EndTime "14:16:55 PDT"]
[Termination "dropstoneDP won by resignation"]

1. d4 {[%clk 0:03:00.9]} 1... d5 {[%clk 0:02:59]} 2. c4 {[%clk 0:03:01.3]} 2...
dxc4 {[%clk 0:02:56]} 3. e3 {[%clk 0:03:01.1]} 3... Nf6 {[%clk 0:02:48.3]} 4.
Bxc4 {[%clk 0:03:01.5]} 4... e6 {[%clk 0:02:21.2]} 5. Nf3 {[%clk 0:03:00.8]}
5... a6 {[%clk 0:02:20.8]} 6. O-O {[%clk 0:02:57.9]} 6... c5 {[%clk 0:02:17.7]}
7. b3 {[%clk 0:02:53.7]} 7... Nbd7 {[%clk 0:02:16.7]} 8. Bb2 {[%clk 0:02:53.3]}
8... Be7 {[%clk 0:02:17.3]} 9. Nc3 {[%clk 0:02:45.9]} 9... b5 {[%clk 0:02:16.6]}
10. Bd3 {[%clk 0:02:45.3]} 10... Bb7 {[%clk 0:02:17.2]} 11. a4 {[%clk
0:02:43.1]} 11... b4 {[%clk 0:02:12.4]} 12. Nb1 {[%clk 0:02:43]} 12... cxd4
{[%clk 0:02:05.9]} 13. Nxd4 {[%clk 0:02:41.8]} 13... Nc5 {[%clk 0:02:05]} 14.
Bc4 {[%clk 0:02:38]} 14... Nce4 {[%clk 0:01:50.9]} 15. Nd2 {[%clk 0:02:35.4]}
15... Nc3 {[%clk 0:01:42.9]} 16. Qc2 {[%clk 0:02:20.2]} 16... Nfd5 {[%clk
0:01:33.1]} 17. Ne4 {[%clk 0:02:11.1]} 17... Nxe3 {[%clk 0:01:25.5]} 18. fxe3
{[%clk 0:01:56.1]} 18... Bxe4 {[%clk 0:01:23.7]} 19. Qd2 {[%clk 0:01:48.2]}
19... O-O {[%clk 0:01:15.8]} 20. Bxc3 {[%clk 0:01:26.8]} 20... bxc3 {[%clk
0:01:16.4]} 21. Qxc3 {[%clk 0:01:27.7]} 21... a5 {[%clk 0:01:15]} 22. Bxe6
{[%clk 0:01:05.1]} 22... fxe6 {[%clk 0:01:14.4]} 23. Nxe6 {[%clk 0:01:06]} 23...
Rxf1+ {[%clk 0:01:14.7]} 24. Rxf1 {[%clk 0:01:05.1]} 24... Bf6 {[%clk
0:01:13.1]} 25. Qc4 {[%clk 0:00:26.6]} 25... Qd5 {[%clk 0:01:11]} 26. Qxd5
{[%clk 0:00:16.1]} 26... Bxd5 {[%clk 0:01:11.9]} 27. Nc7 {[%clk 0:00:16.9]}
27... Rd8 {[%clk 0:01:11.3]} 28. Rd1 {[%clk 0:00:16.5]} 28... Bxb3 {[%clk
0:01:09.5]} 29. Rxd8+ {[%clk 0:00:10.1]} 29... Bxd8 {[%clk 0:01:10.2]} 0-1